bitfinex/quotes_BTCUSD_20250617
["timestamp","ask_amount","ask_price","bid_price","bid_amount"]
[1750156538572,1.6424842,106010.0,106000.0,1.57936514]
[1750156538791,1.6424842,106010.0,106000.0,1.57053933]
[1750156538993,1.6424842,106010.0,106000.0,1.56110108]
[1750156539184,1.6424842,106010.0,106000.0,1.55166205]
[1750156539436,1.61444933,106010.0,106000.0,1.55166205]
[1750156539648,1.61444933,106010.0,106000.0,1.54222302]
[1750156539856,1.62103625,106010.0,106000.0,1.54222302]
[1750156540081,1.64910698,106010.0,106000.0,1.53278324]
[1750156540302,1.77103615,106010.0,106000.0,1.53278324]
[1750156540516,1.47515615,106010.0,106000.0,0.89870346]
[1750156540733,1.47515615,106010.0,106000.0,0.90754169]
[1750156540960,1.67107615,106010.0,106000.0,0.89810191]
[1750156541179,0.37744849,106010.0,106000.0,1.07694368]
[1750156541418,0.35503723,106010.0,106000.0,0.92126368]
[1750156541658,0.35503723,106010.0,106000.0,1.07710368]
[1750156541659,0.23800669,106010.0,106000.0,1.07710368]
[1750156541870,0.23800669,106010.0,106000.0,0.92226368]
[1750156541871,0.21866869,106010.0,106000.0,0.92226368]
[1750156542083,0.21866869,106010.0,106000.0,1.07718368]
[1750156542084,0.44434416,106010.0,106000.0,1.07718368]
[1750156542299,0.20266869,106010.0,106000.0,0.92126368]
[1750156542520,0.43934416,106010.0,106000.0,1.07718368]
[1750156542740,0.20466869,106010.0,106000.0,1.27529688]
[1750156542970,0.43934416,106010.0,106000.0,1.27529688]
[1750156543183,0.20466869,106010.0,106000.0,1.12881075]
[1750156543401,0.19323589,106010.0,106000.0,1.28485075]
[1750156543618,0.19323589,106010.0,106000.0,1.29428444]
[1750156543843,0.19323589,106010.0,106000.0,1.30371804]
[1750156544326,0.01600707,106010.0,106000.0,1.31515146]
[1750156544545,0.21410149,106010.0,106000.0,1.13824444]
[1750156544758,0.21210149,106010.0,106000.0,1.29434421]
[1750156544961,0.21210149,106010.0,106000.0,1.30034421]
[1750156545394,0.20266887,106010.0,106000.0,1.30042421]
[1750156545611,0.20266887,106010.0,106000.0,1.30985781]
[1750156545825,0.20266887,106010.0,106000.0,1.29099052]
[1750156546452,0.20266887,106010.0,106000.0,1.3098579]
[1750156547108,0.43734434,106010.0,106000.0,0.92728345]
[1750156547329,0.20266887,106010.0,106000.0,1.08344345]
[1750156547534,0.43734434,106010.0,106000.0,1.08344345]
[1750156548006,0.43734434,106010.0,106000.0,1.27212269]
[1750156548237,0.43734434,106010.0,106000.0,1.29099043]
[1750156548466,0.20266887,106010.0,106000.0,1.30985754]
[1750156548679,0.22153456,106010.0,106000.0,1.30985754]
[1750156549121,0.02843943,106010.0,106000.0,1.55396634]
[1750156549566,0.02843943,106010.0,106000.0,1.39780634]
[1750156549776,0.22653385,106010.0,106000.0,1.53629474]
[1750156549991,0.03787241,106010.0,106000.0,1.30161927]
[1750156550212,0.22653385,106010.0,106000.0,1.29214603]
[1750156550455,0.22653385,106010.0,106000.0,1.30157945]
[1750156550750,0.22653385,106010.0,106000.0,1.53625492]
[1750156550981,0.22653385,106010.0,106000.0,1.30157945]
[1750156551206,0.22653456,106010.0,106000.0,1.29214603]
[1750156551444,0.20766905,106010.0,106000.0,1.11715883]
[1750156551682,0.20766905,106010.0,106000.0,1.10772505]
[1750156551919,0.20766905,106010.0,106000.0,1.2827127]
[1750156552146,0.20766905,106010.0,106000.0,1.29214639]
[1750156552387,0.19823607,106010.0,106000.0,1.2827127]
[1750156552616,0.188803,106010.0,106000.0,1.10772505]
[1750156552838,0.188803,106010.0,106000.0,1.11715892]
[1750156553064,0.188803,106010.0,106000.0,1.27323892]
[1750156553301,0.00014156,106010.0,106000.0,1.37891446]
[1750156553535,0.21710087,106010.0,106000.0,1.62302353]
[1750156553759,0.22653394,106010.0,106000.0,1.63245641]
[1750156554016,0.0378725,106010.0,106000.0,1.61358957]
[1750156554265,0.21710158,106010.0,106000.0,1.44807597]
[1750156554479,0.21710158,106010.0,106000.0,1.3695605]
[1750156554692,0.21710158,106010.0,106000.0,1.20396672]
[1750156554895,0.20766896,106010.0,106000.0,1.00585361]
[1750156555322,0.20766896,106010.0,106000.0,1.16197361]
[1750156555508,0.20766896,106010.0,106000.0,1.00585361]
[1750156555721,0.20766896,106010.0,106000.0,1.16197361]
[1750156555937,0.20766896,106010.0,106000.0,1.06573185]
[1750156556580,0.20766896,106010.0,106000.0,0.87761185]
[1750156556796,0.44234443,106010.0,106000.0,1.03373185]
[1750156557658,0.44234443,106010.0,106000.0,0.87761185]
[1750156557872,0.20766896,106010.0,106000.0,0.87761185]
[1750156558101,0.44234443,106010.0,106000.0,1.03169185]
[1750156558385,0.44234443,106010.0,106000.0,1.03185185]
[1750156558823,0.78234443,106010.0,106000.0,0.87561185]
[1750156559039,0.78234443,106010.0,106000.0,1.03185185]
[1750156560128,0.54766896,106010.0,106000.0,1.03185185]
[1750156560350,0.54766896,106010.0,106000.0,1.04815185]
[1750156560574,0.54766896,106010.0,106000.0,1.26266505]
[1750156560791,0.02843943,106010.0,106000.0,1.68507474]
[1750156561060,0.01900654,106010.0,106000.0,1.68507474]
[1750156561270,0.02843934,106010.0,106000.0,1.68507474]
[1750156561487,0.01900654,106010.0,106000.0,1.68507474]
[1750156561703,0.02843943,106010.0,106000.0,1.45039927]
[1750156561915,0.02843934,106010.0,106000.0,1.68507474]
[1750156562392,0.00957392,106010.0,106000.0,1.7813165]
[1750156563491,0.01900645,106010.0,106000.0,1.7813165]
[1750156563705,0.02843889,106010.0,106000.0,1.7813165]
[1750156563912,0.00957392,106010.0,106000.0,1.7813165]
[1750156564128,0.01900636,106010.0,106000.0,1.7813165]
[1750156564553,0.00014156,106010.0,106000.0,1.7813165]
[1750156565215,0.00957392,106010.0,106000.0,1.7813165]
[1750156565649,0.03787214,106010.0,106000.0,1.54656103]
[1750156565874,0.02843925,106010.0,106000.0,1.54656103]
[1750156566107,0.03787214,106010.0,106000.0,1.54656103]
[1750156566560,0.22653358,106010.0,106000.0,1.39040103]
[1750156566772,0.23596727,106010.0,106000.0,1.39040103]
[1750156567236,0.22653474,106010.0,106000.0,1.52765419]
[1750156567451,0.21710194,106010.0,106000.0,1.52765428]
[1750156567661,0.21710194,106010.0,106000.0,1.52761428]
[1750156568099,0.20766905,106010.0,106000.0,1.51818059]
[1750156568519,0.20766905,106010.0,106000.0,1.05831185]
[1750156568730,0.43291154,106010.0,106000.0,1.21435185]
[1750156568951,0.19823607,106010.0,106000.0,1.21435185]
[1750156569585,0.188803,106010.0,106000.0,1.05831185]
[1750156569827,0.188803,106010.0,106000.0,1.21431185]
[1750156570263,0.188803,106010.0,106000.0,1.40299109]
[1750156570475,0.188803,106010.0,106000.0,1.41242505]
[1750156571362,0.188803,106010.0,106000.0,1.21431185]
[1750156572730,0.188803,106010.0,106000.0,1.05831185]
[1750156572943,0.188803,106010.0,106000.0,1.19779185]
[1750156574142,0.188803,106010.0,106000.0,1.21329185]
[1750156575217,0.188803,106010.0,106000.0,1.40197109]
[1750156575445,0.188803,106010.0,106000.0,1.21329185]
[1750156575654,0.188803,106010.0,106000.0,1.41140487]
[1750156575864,0.188803,106010.0,106000.0,1.40197109]
[1750156576073,0.188803,106010.0,106000.0,1.41140505]
[1750156576300,0.188803,106010.0,106000.0,1.42083883]
[1750156576515,0.1982358,106010.0,106000.0,1.66494781]
[1750156576730,0.1982358,106010.0,106000.0,1.6555143]
[1750156576942,0.1982358,106010.0,106000.0,1.43027252]
[1750156577377,0.1982358,106010.0,106000.0,1.42083883]
[1750156577587,0.188803,106010.0,106000.0,1.22272581]
[1750156577812,0.188803,106010.0,106000.0,1.21329185]
[1750156578027,0.188803,106010.0,106000.0,1.04191185]
[1750156578466,0.188803,106010.0,106000.0,1.19791185]
[1750156578677,0.188803,106010.0,106000.0,1.19795185]
[1750156578882,0.42347847,106010.0,106000.0,1.02561185]
[1750156579093,0.42347847,106010.0,106000.0,1.18165185]
[1750156579715,0.42347847,106010.0,106000.0,1.02561185]
[1750156579938,0.188803,106010.0,106000.0,1.02561185]
[1750156580147,0.188803,106010.0,106000.0,1.18161185]
[1750156580561,0.188803,106010.0,106000.0,1.02561185]
[1750156580763,0.42347847,106010.0,106000.0,0.87561185]
[1750156580975,0.45537847,106010.0,106000.0,0.87561185]
[1750156581251,0.79537847,106010.0,106000.0,1.03165185]
[1750156581438,0.79537847,106010.0,106000.0,1.03161185]
[1750156582119,0.79537847,106010.0,106000.0,0.87561185]
[1750156582375,0.79537847,106010.0,106000.0,1.03173185]
[1750156582607,0.79537847,106010.0,106000.0,0.87561185]
[1750156582829,0.79537847,106010.0,106000.0,1.03169185]
[1750156583489,0.79537847,106010.0,106000.0,1.03165185]
[1750156583721,0.79537847,106010.0,106000.0,0.87561185]
[1750156583903,0.79537847,106010.0,106000.0,1.03165185]
[1750156584584,0.79537847,106010.0,106000.0,0.87561185]
[1750156584813,0.79537847,106010.0,106000.0,1.03161185]
[1750156586686,0.79537847,106010.0,106000.0,0.87561185]
[1750156586898,0.79537847,106010.0,106000.0,1.03161185]
[1750156587524,0.89162023,106010.0,106000.0,0.87561185]
[1750156587964,0.91995423,106010.0,106000.0,0.87561185]
[1750156589546,0.96103423,106010.0,106000.0,0.87561185]
[1750156591963,0.72635876,106010.0,106000.0,0.87561185]
[1750156592172,0.96103423,106010.0,106000.0,0.87561185]
[1750156593313,0.557137,106010.0,106000.0,0.87561185]
[1750156593536,0.528803,106010.0,106000.0,1.03141185]
[1750156593960,0.528803,106010.0,106000.0,1.04791185]
[1750156594176,0.528803,106010.0,106000.0,1.03141185]
[1750156594605,0.76347847,106010.0,106000.0,1.03141185]
[1750156595053,0.79507847,106010.0,106000.0,1.03141185]
[1750156596796,0.79507847,106010.0,106000.0,1.03875015]
[1750156597504,0.77947847,106010.0,106000.0,1.03875015]
[1750156598898,0.79457847,106010.0,106000.0,1.03875015]
[1750156599325,0.544803,106010.0,106000.0,1.03875015]
[1750156599569,0.77947847,106010.0,106000.0,1.03875015]
[1750156600730,0.79477847,106010.0,106000.0,1.03875015]
[1750156602820,0.79477847,106010.0,106000.0,1.03863015]
[1750156603488,0.79477847,106010.0,106000.0,0.88295015]
[1750156608488,0.79477847,106010.0,106000.0,0.88295015]
[1750156612624,0.89102023,106010.0,106000.0,0.88295015]
[1750156613030,0.91935223,106010.0,106000.0,0.88295015]
[1750156614201,0.994677,106010.0,106000.0,0.88295015]
[1750156614410,1.05975036,106010.0,106000.0,0.88295015]
[1750156614632,1.09713019,106010.0,106000.0,0.88295015]
[1750156615046,1.09713019,106010.0,106000.0,0.88095015]
[1750156615697,1.09713019,106010.0,106000.0,0.87695015]
[1750156615896,1.09713019,106010.0,106000.0,0.87895015]
[1750156616373,1.05975036,106010.0,106000.0,0.87695015]
[1750156616728,1.08857553,106010.0,106000.0,0.87695015]
[1750156616929,0.77668666,106010.0,106000.0,0.87795015]
[1750156617158,0.97068213,106010.0,106000.0,0.87795015]
[1750156617363,0.93938213,106010.0,106000.0,0.87795015]
[1750156617604,1.13530213,106010.0,106000.0,0.87795015]
[1750156617755,0.9208774,106010.0,106000.0,0.87795015]
[1750156618115,1.1167974,106010.0,106000.0,0.87695015]
[1750156618262,0.9238774,106010.0,106000.0,0.87695015]
[1750156618424,1.1157974,106010.0,106000.0,0.87695015]
[1750156618636,1.20422286,106010.0,106000.0,0.87695015]
[1750156618847,1.23412286,106010.0,106000.0,0.87695015]
[1750156620136,1.23612286,106010.0,106000.0,0.87695015]
[1750156621247,1.27313228,106010.0,106000.0,0.87695015]
[1750156621903,1.30116006,106010.0,106000.0,0.87695015]
[1750156626060,1.58583553,106010.0,106000.0,0.87695015]
[1750156626268,1.38853989,106010.0,106000.0,0.87695015]
[1750156626691,1.35116006,106010.0,106000.0,0.87695015]
[1750156628022,1.58583553,106010.0,106000.0,0.87695015]
[1750156628507,1.35116006,106010.0,106000.0,0.87695015]
[1750156632726,1.30164006,106010.0,106000.0,0.87695015]
[1750156633619,1.10524006,106010.0,106000.0,0.87695015]
[1750156633863,1.27373228,106010.0,106000.0,0.87695015]
[1750156634311,1.27369228,106010.0,106000.0,0.87695015]
[1750156634533,0.84253681,106010.0,106000.0,0.87695015]
[1750156634971,1.27369228,106010.0,106000.0,0.87695015]
[1750156636392,1.30172006,106010.0,106000.0,0.87695015]
[1750156637103,1.30168006,106010.0,106000.0,0.87695015]
[1750156638545,1.06700459,106010.0,106000.0,0.87695015]
[1750156638782,1.30168006,106010.0,106000.0,0.87695015]
[1750156640365,1.10524006,106010.0,106000.0,0.87695015]
[1750156640594,1.04631228,106010.0,106000.0,0.87695015]
[1750156640839,1.24271228,106010.0,106000.0,0.87695015]
[1750156641530,1.27074006,106010.0,106000.0,0.87695015]
[1750156642860,1.27086006,106010.0,106000.0,0.87695015]
[1750156643067,1.11518006,106010.0,106000.0,0.87695015]
[1750156643277,1.03618459,106010.0,106000.0,0.87695015]
[1750156643488,0.83966459,106010.0,106000.0,0.87695015]
[1750156643719,1.27082006,106010.0,106000.0,0.89215015]
[1750156643942,0.73669828,106010.0,106000.0,0.89215015]
[1750156644161,0.73669828,106010.0,106000.0,0.90725015]
[1750156644162,1.13990597,106010.0,106000.0,0.90725015]
[1750156644590,1.13990597,106010.0,106000.0,0.87695015]
[1750156644811,1.16793375,106010.0,106000.0,0.87695015]
[1750156645515,1.20023375,106010.0,106000.0,0.87695015]
[1750156645725,1.29638297,106010.0,106000.0,0.87695015]
[1750156646160,1.31092382,106010.0,106000.0,0.87695015]
[1750156647351,1.54559929,106010.0,106000.0,0.87695015]
[1750156647565,1.31092382,106010.0,106000.0,0.87695015]
[1750156648434,1.54559929,106010.0,106000.0,0.87695015]
[1750156648644,1.34830365,106010.0,106000.0,0.87695015]
[1750156648879,1.58297912,106010.0,106000.0,0.87695015]
[1750156649515,1.55495134,106010.0,106000.0,0.87695015]
[1750156649745,1.55495134,106010.0,106000.0,0.87195015]
[1750156650344,1.60495134,106010.0,106000.0,0.87195015]
[1750156651087,1.37027587,106010.0,106000.0,0.87195015]
[1750156651321,1.37686193,106010.0,106000.0,0.87195015]
[1750156651551,1.43321682,106010.0,106000.0,0.87195015]
[1750156652029,1.6115374,106010.0,106000.0,0.87195015]
[1750156652737,1.66789229,106010.0,106000.0,0.87195015]
[1750156653542,1.43321682,106010.0,106000.0,0.87195015]
[1750156654239,1.19854135,106010.0,106000.0,0.87195015]
[1750156654454,1.37027587,106010.0,106000.0,0.87195015]
[1750156655105,1.37686236,106010.0,106000.0,0.87195015]
[1750156655322,1.43321725,106010.0,106000.0,0.87195015]
[1750156655992,1.42663076,106010.0,106000.0,0.87195015]
[1750156656907,1.66789249,106010.0,106000.0,0.87195015]
[1750156657161,1.66130623,106010.0,106000.0,0.87195015]
[1750156657412,1.66789254,106010.0,106000.0,0.87195015]
[1750156658097,1.61153765,106010.0,106000.0,0.87195015]
[1750156658592,1.81789249,106010.0,106000.0,0.87195015]
[1750156659671,1.81789206,106010.0,106000.0,0.87195015]
[1750156660561,1.76153717,106010.0,106000.0,0.82475044]
[1750156661221,1.78964018,106010.0,106000.0,0.77755073]
[1750156661449,1.78964018,106010.0,106000.0,0.73035102]
[1750156661695,1.75226035,106010.0,106000.0,0.68315131]
[1750156661905,1.75226035,106010.0,106000.0,0.67480131]
[1750156662118,1.80226035,106010.0,106000.0,0.6276016]
[1750156662331,1.83964018,106010.0,106000.0,0.5938316]
[1750156662558,1.83964018,106010.0,106000.0,0.49943218]
[1750156662781,1.80226035,106010.0,106000.0,0.45223247]
[1750156662991,1.80226035,106010.0,106000.0,0.40503276]
[1750156663423,1.80226035,106010.0,106000.0,0.31062722]
[1750156663665,1.75226035,106010.0,106000.0,0.26342445]
[1750156663885,1.80226035,106010.0,106000.0,0.21622168]
[1750156664100,1.80226035,106010.0,106000.0,0.16901891]
[1750156664329,1.60570035,106010.0,106000.0,0.12181614]
[1750156664541,1.60570035,106010.0,106000.0,0.07461337]
[1750156664767,1.60570035,106010.0,106000.0,0.0274106]
[1750156664998,1.80214035,106010.0,106000.0,0.0274106]
[1750156665211,1.81141717,106010.0,106000.0,0.0064807]
[1750156665416,1.81141619,106010.0,106000.0,0.0008576]
[1750156665902,1.76141619,106010.0,106000.0,0.0008576]
[1750156666118,1.81141619,106010.0,106000.0,0.0008576]
[1750156669626,1.61497619,106010.0,106000.0,0.0008576]
[1750156669831,1.57674072,106010.0,106000.0,0.0008576]
[1750156670038,1.81141619,106010.0,106000.0,0.0008576]
[1750156670260,1.83950864,106010.0,106000.0,0.0008576]
[1750156671549,1.83292379,106010.0,106000.0,0.0008576]
[1750156672576,1.83296379,106010.0,106000.0,0.0008576]
[1750156672788,1.63648379,106010.0,106000.0,0.0008576]
[1750156672999,1.83284379,106010.0,106000.0,0.0008576]
[1750156673459,1.80475134,106010.0,106000.0,0.0008576]
[1750156673669,1.60839134,106010.0,106000.0,0.0008576]
[1750156673882,1.80475134,106010.0,106000.0,0.0008576]
[1750156674118,1.81133504,106010.0,106000.0,0.0008576]
[1750156674336,1.81133551,106010.0,106000.0,0.0008576]
[1750156674569,1.8676904,106010.0,106000.0,0.0008576]
[1750156674786,1.83031082,106010.0,106000.0,0.0008576]
[1750156675420,1.38327535,106010.0,106000.0,0.0008576]
[1750156675637,1.81427082,106010.0,106000.0,0.0008576]
[1750156675857,1.83047082,106010.0,106000.0,0.0008576]
[1750156678435,1.78047082,106010.0,106000.0,0.0008576]
[1750156679059,1.78047498,106010.0,106000.0,0.0008576]
[1750156680527,0.54756611,105990.0,105980.0,0.0441]
[1750156680731,1.36457354,105990.0,105980.0,0.0441]
[1750156681151,1.37911439,105990.0,105980.0,0.0441]
[1750156681517,0.96622019,105990.0,105980.0,0.0281]
[1750156681677,1.46195028,105990.0,105980.0,0.044]
[1750156682095,1.26571028,105990.0,105980.0,0.044]
[1750156682303,1.46195028,105990.0,105980.0,0.044]
[1750156682665,1.26571028,105990.0,105980.0,0.044]
[1750156682869,1.46195028,105990.0,105980.0,0.044]
[1750156683178,1.26571028,105990.0,105980.0,0.044]
[1750156683363,1.46195028,105990.0,105980.0,0.044]
[1750156685537,1.46195028,105990.0,105980.0,0.013]
[1750156685718,1.47649113,105990.0,105980.0,0.013]
[1750156685930,1.54607878,105990.0,105980.0,0.013]
[1750156686055,1.53007878,105990.0,105980.0,0.013]
[1750156686264,1.54607878,105990.0,105980.0,0.013]
[1750156687777,1.81022886,105990.0,105980.0,0.013]
[1750156687975,1.81022886,105990.0,105960.0,0.01971308]
[1750156687976,0.67695623,105970.0,105960.0,0.00461308]
[1750156688192,0.19818781,105960.0,105950.0,0.02963386]
[1750156688396,0.76378051,105960.0,105950.0,0.02963386]
[1750156688597,0.72554504,105960.0,105950.0,0.02963386]
[1750156688800,0.75389304,105960.0,105950.0,0.02963386]
[1750156689445,0.75389304,105960.0,105950.0,0.03011187]
[1750156690573,0.22653581,105960.0,105950.0,0.03011187]
[1750156690794,0.43286328,105960.0,105950.0,0.03011187]
[1750156691014,0.86405875,105960.0,105950.0,0.03211187]
[1750156691235,0.96030051,105960.0,105950.0,0.03211187]
[1750156691450,0.49094957,105960.0,105950.0,0.03511187]
[1750156691656,1.05644973,105960.0,105950.0,0.03511187]
[1750156692598,1.43431579,105960.0,105950.0,0.00547801]
[1750156692812,1.23779579,105960.0,105950.0,0.00547801]
[1750156693027,1.43559579,105960.0,105950.0,0.00547801]
[1750156693250,1.45179579,105960.0,105950.0,0.00547801]
[1750156693473,1.45179579,105960.0,105930.0,0.05056]
[1750156693474,0.52876828,105950.0,105930.0,0.05056]
[1750156693700,0.52876828,105950.0,105910.0,0.15975972]
[1750156693701,0.2351626,105920.0,105900.0,0.3002]
[1750156693956,0.20780138,105870.0,105860.0,0.15]
[1750156694185,0.19841251,105840.0,105830.0,0.15]
[1750156694413,0.01889939,105820.0,105810.0,0.15222747]
[1750156694644,0.20789957,105820.0,105810.0,0.16106667]
[1750156694876,0.20789957,105820.0,105810.0,0.19316667]
[1750156695107,0.20789957,105820.0,105810.0,0.04364255]
[1750156695331,0.30414133,105820.0,105810.0,0.04364255]
[1750156695553,0.360531,105820.0,105810.0,0.04364251]
[1750156695785,0.33317363,105820.0,105810.0,0.0436425]
[1750156696008,0.23693187,105820.0,105810.0,0.0436425]
[1750156696301,0.30414133,105820.0,105810.0,0.0446425]
[1750156696525,0.30414097,105820.0,105810.0,0.00370335]
[1750156696753,0.30414097,105820.0,105810.0,0.03380335]
[1750156696754,0.54789975,105820.0,105810.0,0.03380335]
[1750156696987,0.20789975,105820.0,105810.0,0.18380335]
[1750156697219,0.18899715,105830.0,105810.0,0.20255266]
[1750156697451,0.2078801,105830.0,105820.0,0.2299501]
[1750156697684,0.2078801,105830.0,105820.0,0.04095]
[1750156697905,0.19843126,105830.0,105820.0,0.0315]
[1750156698130,0.19843126,105830.0,105820.0,0.12031049]
[1750156698587,0.00944742,105840.0,105830.0,0.032]
[1750156698852,0.36834073,105850.0,105840.0,0.032]
[1750156699090,0.00944599,105860.0,105850.0,0.0166]
[1750156699343,0.09624176,105860.0,105850.0,0.0332]
[1750156699586,0.00944474,105870.0,105860.0,0.22212877]
[1750156699826,0.01888858,105880.0,105870.0,0.0313]
[1750156700044,0.01888796,105880.0,105870.0,0.248547]
[1750156700265,0.01888689,105890.0,105880.0,0.02644465]
[1750156700498,0.02833002,105890.0,105880.0,0.23970681]
[1750156700712,0.02833002,105890.0,105880.0,0.23422658]
[1750156700713,0.00944304,105890.0,105880.0,0.23422658]
[1750156700946,0.00944304,105890.0,105880.0,0.24367087]
[1750156701159,0.01888493,105900.0,105890.0,0.20849905]
[1750156701390,0.02832771,105900.0,105890.0,0.21794263]
[1750156701615,0.20774171,105900.0,105890.0,0.19905538]
[1750156701841,0.59857726,105900.0,105890.0,0.0151]
[1750156702070,0.65342715,105900.0,105890.0,0.0151]
[1750156702300,0.59886086,105900.0,105890.0,0.0151]
[1750156702519,0.93886086,105900.0,105890.0,0.0151]
[1750156702731,0.64398473,105900.0,105890.0,0.0151]
[1750156703160,0.93886086,105900.0,105890.0,0.0151]
[1750156703383,0.96105744,105900.0,105890.0,0.0151]
[1750156703604,0.20776231,105890.0,105880.0,0.01144465]
[1750156703835,0.03777306,105890.0,105880.0,0.23488748]
[1750156704054,0.04721664,105890.0,105880.0,0.25727042]
[1750156704492,0.04721736,105890.0,105880.0,0.25727042]
[1750156704725,0.02833047,105890.0,105880.0,0.25727042]
[1750156704951,0.01888689,105890.0,105880.0,0.25927042]
[1750156705208,0.52885775,105900.0,105890.0,0.22306231]
[1750156705433,0.188902,105910.0,105890.0,0.38250454]
[1750156705652,0.0188843,105900.0,105890.0,0.38250454]
[1750156705871,0.00944153,105910.0,105900.0,0.23288494]
[1750156706083,0.21716417,105910.0,105900.0,0.2384427]
[1750156706311,0.19828138,105910.0,105900.0,0.0307]
[1750156706536,0.49315751,105910.0,105900.0,0.0307]
[1750156706753,0.51536766,105910.0,105900.0,0.015]
[1750156706965,0.51537294,105910.0,105900.0,0.015]
[1750156707600,0.49315751,105910.0,105900.0,0.015]
[1750156707835,0.51537871,105910.0,105900.0,0.015]
[1750156708055,0.51537871,105910.0,105900.0,0.016]
[1750156708296,0.51537871,105910.0,105900.0,0.018]
[1750156708532,0.82846434,105910.0,105900.0,0.003]
[1750156708776,1.42334047,105910.0,105900.0,0.003]
[1750156709037,0.86050258,105910.0,105900.0,0.0182]
[1750156709275,0.19828138,105910.0,105900.0,0.03525607]
[1750156709505,0.19828138,105910.0,105900.0,0.05155607]
[1750156709744,0.49315751,105910.0,105900.0,0.05155607]
[1750156709983,0.51539028,105910.0,105900.0,0.05155607]
[1750156710462,0.19828138,105910.0,105900.0,0.05155607]
[1750156710712,0.19385635,105920.0,105910.0,0.15]
[1750156710713,0.00491986,105920.0,105910.0,0.15]
[1750156710960,0.20770464,105920.0,105910.0,0.35286]
[1750156711207,0.20770464,105920.0,105910.0,0.60256708]
[1750156711461,0.21714537,105920.0,105910.0,0.70825055]
[1750156711747,0.22658645,105920.0,105910.0,0.71769217]
[1750156712012,0.2077049,105920.0,105910.0,0.16587588]
[1750156712234,0.2077049,105920.0,105910.0,0.16687588]
[1750156712880,0.2077049,105920.0,105910.0,0.35807563]
[1750156713083,0.2077049,105920.0,105910.0,0.18337588]
[1750156713299,0.2077049,105920.0,105910.0,0.19517802]
[1750156713524,0.198264,105920.0,105910.0,0.18337588]
[1750156713801,0.198264,105920.0,105910.0,0.28905961]
[1750156714083,0.198264,105920.0,105910.0,0.49678287]
[1750156714323,0.20770402,105920.0,105910.0,0.5062244]
[1750156714557,0.22658547,105920.0,105910.0,0.5062244]
[1750156714776,0.22658547,105920.0,105910.0,0.49678287]
[1750156715000,0.21714519,105920.0,105910.0,0.50622458]
[1750156715218,0.02832236,105920.0,105910.0,0.50622414]
[1750156715507,0.02832227,105920.0,105910.0,0.51566549]
[1750156715742,0.2265851,105920.0,105910.0,0.50622414]
[1750156715976,0.21714455,105920.0,105910.0,0.49678261]
[1750156716250,0.21714455,105920.0,105910.0,0.50622423]
[1750156716461,0.26714455,105920.0,105910.0,0.51566567]
[1750156716700,0.26714455,105920.0,105910.0,0.50622423]
[1750156716937,0.24826283,105920.0,105910.0,0.45145764]
[1750156717174,0.24826257,105920.0,105910.0,0.65918072]
[1750156717410,0.2671442,105920.0,105910.0,0.6591809]
[1750156717620,0.2671442,105920.0,105910.0,0.66862261]
[1750156717836,0.24826283,105920.0,105910.0,0.4778991]
[1750156718107,0.23882175,105920.0,105910.0,0.45153764]
[1750156718323,0.23882175,105920.0,105910.0,0.45161764]
[1750156718992,0.23882175,105920.0,105910.0,0.43507764]
[1750156719216,0.23882175,105920.0,105910.0,0.43503764]
[1750156719438,0.23882175,105920.0,105910.0,0.62387722]
[1750156719672,0.23882175,105920.0,105910.0,0.63331902]
[1750156720588,0.23882175,105920.0,105910.0,0.43503764]
[1750156720810,0.57882175,105920.0,105910.0,0.16687588]
[1750156721021,0.60111979,105920.0,105910.0,0.15147588]
[1750156721240,0.89599592,105920.0,105910.0,0.32331588]
[1750156721458,0.89599592,105920.0,105910.0,0.33891588]
[1750156721672,0.89599592,105920.0,105910.0,0.16707588]
[1750156722108,0.89599592,105920.0,105910.0,0.33879588]
[1750156722572,0.26111979,105920.0,105910.0,0.69811702]
[1750156722793,0.24826274,105920.0,105910.0,0.64851919]
[1750156723008,0.24826274,105920.0,105910.0,0.43503764]
[1750156723673,0.24826274,105920.0,105910.0,0.33903588]
[1750156723889,0.24826274,105920.0,105910.0,0.37479931]
[1750156724110,0.24826274,105920.0,105910.0,0.33895588]
[1750156724324,0.54313887,105920.0,105910.0,0.00147588]
[1750156724564,0.27057135,105920.0,105910.0,0.00147588]
[1750156724785,0.56544748,105920.0,105910.0,0.00147588]
[1750156727417,0.59332003,105920.0,105910.0,0.00147588]
[1750156728499,0.2984439,105920.0,105910.0,0.00147588]
[1750156728715,0.59332003,105920.0,105910.0,0.00147588]
[1750156730512,1.05992046,105920.0,105910.0,0.00147588]
[1750156730769,0.80253198,105920.0,105910.0,0.00147588]
[1750156730976,0.83101432,105920.0,105910.0,0.00147588]
[1750156731169,0.77465943,105920.0,105910.0,0.00147588]
[1750156731453,0.67851021,105920.0,105910.0,0.00147588]
[1750156731663,0.70653811,105920.0,105910.0,0.00147588]
[1750156731878,1.0748651,105920.0,105910.0,0.00147588]
[1750156732092,1.17110686,105920.0,105910.0,0.00147588]
[1750156732301,1.17099617,105920.0,105910.0,0.00147588]
[1750156732508,1.29550339,105920.0,105910.0,0.00147588]
[1750156732718,1.00062726,105920.0,105910.0,0.00147588]
[1750156732967,1.21992831,105920.0,105910.0,0.00147588]
[1750156733182,1.29549909,105920.0,105910.0,0.00147588]
[1750156733859,1.59549909,105920.0,105910.0,0.00147588]
[1750156734285,1.49925733,105920.0,105910.0,0.00147588]
[1750156734543,1.44259435,105920.0,105910.0,0.00147588]
[1750156734753,0.63599822,105920.0,105910.0,0.00147588]
[1750156734980,0.59862126,105920.0,105910.0,0.16697588]
[1750156735632,0.57057135,105920.0,105910.0,0.40556181]
[1750156735851,0.85925058,105960.0,105940.0,0.15]
[1750156735852,0.05635489,105960.0,105940.0,0.15]
[1750156736068,0.0263152,105970.0,105960.0,0.36706196]
[1750156736302,0.00943422,105990.0,105980.0,0.19815041]
[1750156736528,0.00943583,105970.0,105960.0,0.20931149]
[1750156736756,0.48360879,105970.0,105960.0,0.33896]
[1750156736977,0.00943609,105970.0,105960.0,0.52134781]
[1750156737204,0.22647712,105970.0,105960.0,0.15]
[1750156737439,0.22647712,105970.0,105960.0,0.33922635]
[1750156737440,0.50248142,105970.0,105960.0,0.33922635]
[1750156737868,0.20760529,105970.0,105960.0,0.35810121]
[1750156738089,0.19816911,105970.0,105960.0,0.15047588]
[1750156739194,0.49304524,105970.0,105960.0,0.00047588]
[1750156739431,0.83404524,105970.0,105960.0,0.00047588]
[1750156739636,0.83304524,105970.0,105960.0,0.00047588]
[1750156740067,0.83404524,105970.0,105960.0,0.00047588]
[1750156741155,1.07464524,105970.0,105960.0,0.00047588]
[1750156741876,1.45036222,105970.0,105960.0,0.00047588]
[1750156742085,1.15548609,105970.0,105960.0,0.00047588]
[1750156742840,1.15448609,105970.0,105960.0,0.00047588]
[1750156743335,1.34687707,105970.0,105960.0,0.00047588]
[1750156743556,1.6457532,105970.0,105960.0,0.00047588]
[1750156743804,1.9021932,105970.0,105960.0,0.00147588]
[1750156744710,1.08367707,105970.0,105960.0,0.00147588]
[1750156744951,1.06737707,105970.0,105960.0,0.00147588]